bitfinex-derivatives/quotes_SOLF0:USTF0_20260123
["timestamp","ask_amount","ask_price","bid_price","bid_amount"]
[1769179109083,7.1606,125.86,125.77,19.00471195]
[1769179109594,7.1611,125.85,125.77,19.00471195]
[1769179110783,5.2984919,125.87,125.78,19.00471195]
[1769179110784,12.4586919,125.87,125.78,19.00471195]
[1769179111285,12.4586919,125.87,125.79,19.00471195]
[1769179111485,7.159,125.89,125.79,19.00471195]
[1769179111684,116.6505919,125.9,125.79,19.00471195]
[1769179111885,111.362,125.89,125.79,19.00471195]
[1769179112204,5.2984919,125.9,125.79,19.00471195]
[1769179112596,5.2984919,125.9,125.81,19.00471195]
[1769179113194,7.1578,125.91,125.82,19.00471195]
[1769179113694,116.6367919,125.92,125.82,19.00471195]
[1769179113900,222.7152,125.9,125.79,19.00471195]
[1769179114391,116.6367919,125.92,125.8,19.00471195]
[1769179114392,7.159,125.89,125.8,19.00471195]
[1769179114594,5.2984919,125.89,125.8,19.00471195]
[1769179114794,111.4206,125.82,125.73,19.00471195]
[1769179115096,116.7102919,125.83,125.73,19.00471195]
[1769179115097,5.2984919,125.83,125.73,19.00471195]
[1769179115298,116.7123919,125.83,125.73,19.00471195]
[1769179115495,7.164,125.8,125.73,19.00471195]
[1769179115894,12.4624919,125.8,125.73,19.00471195]
[1769179116089,5.2984919,125.8,125.73,19.00471195]
[1769179116295,111.366,125.89,125.75,19.00471195]
[1769179116494,5.2984919,125.85,125.75,19.00471195]
[1769179116689,116.6955919,125.85,125.71,130.51811195]
[1769179116895,5.2984919,125.84,125.74,19.00471195]
[1769179117502,5.2984919,125.84,125.75,26.17081195]
[1769179117702,5.2984919,125.86,125.77,19.00471195]
[1769179117892,5.2984919,125.89,125.77,19.00471195]
[1769179118295,116.6592919,125.89,125.78,19.00471195]
[1769179118692,5.2984919,125.89,125.78,19.00471195]
[1769179118898,7.1597,125.88,125.79,7.1642]
[1769179119402,5.2984919,125.89,125.8,7.1637]
[1769179120100,5.2984919,125.92,125.82,19.00471195]
[1769179120407,5.2984919,125.92,125.83,19.00471195]
[1769179120606,5.2984919,125.92,125.85,7.1607]
[1769179120795,5.2984919,125.92,125.85,19.00471195]
[1769179120998,116.6326919,125.92,125.82,19.00471195]
[1769179121192,5.2984919,125.89,125.81,7.1631]
[1769179121895,5.2984919,125.89,125.79,19.00471195]
[1769179121896,12.4572919,125.89,125.79,26.16891195]
[1769179122198,12.4572919,125.89,125.79,19.00471195]
[1769179122596,7.1596,125.88,125.79,19.00471195]
[1769179123097,5.2984919,125.89,125.8,19.00471195]
[1769179123603,5.2984919,125.89,125.81,7.1631]
[1769179124105,12.4558919,125.92,125.82,19.00471195]
[1769179124510,116.6325919,125.92,125.82,19.00471195]
[1769179125006,7.1594,125.88,125.79,26.16881195]
[1769179125205,116.6325919,125.92,125.8,19.00471195]
[1769179125206,5.2984919,125.92,125.8,19.00471195]
[1769179125402,5.2984919,125.92,125.81,19.00471195]
[1769179125907,7.1582,125.9,125.82,7.1624]
[1769179126102,5.2984919,125.92,125.81,19.00471195]
[1769179126299,111.3497,125.9,125.81,19.00471195]
[1769179126606,7.1599,125.87,125.81,19.00471195]
[1769179126798,5.2984919,125.89,125.81,19.00471195]
[1769179127598,5.2984919,125.92,125.81,19.00471195]
[1769179128103,116.6337919,125.92,125.81,19.00471195]
[1769179128697,7.159,125.89,125.81,19.00471195]
[1769179129205,7.1594,125.88,125.81,19.00471195]
[1769179129704,7.1574,125.92,125.82,19.00471195]
[1769179130207,5.2984919,125.94,125.82,19.00471195]
[1769179130507,12.4544919,125.94,125.83,18.97876042]
[1769179130706,5.2984919,125.94,125.86,0.05052129]
[1769179130908,116.6153919,125.94,125.86,0.05052129]
[1769179131203,116.6153919,125.94,125.83,18.97876042]
[1769179131705,116.6008919,125.96,125.89,0.05855608]
[1769179131900,111.3094,125.95,125.89,0.05855608]
[1769179132108,117.14556265,125.94,125.85,18.97876042]
[1769179132311,7.1571,125.92,125.85,18.97876042]
[1769179132603,111.3328,125.92,125.79,18.97876042]
[1769179133202,7.159,125.89,125.79,18.97876042]
[1769179133595,0.05051815,125.87,125.79,18.97876042]
[1769179134205,111.3328,125.92,125.79,18.97876042]
[1769179134404,5.2984919,125.9,125.79,18.97876042]
[1769179134607,0.05017005,125.84,125.79,18.97876042]
[1769179136609,0.05017005,125.84,125.73,18.97876042]
[1769179136802,0.05017005,125.84,125.76,18.97876042]
[1769179137003,7.1614,125.85,125.76,18.97876042]
[1769179137898,7.1618,125.84,125.79,0.05593162]
[1769179138104,339.5259919,125.84,125.73,18.95120372]
[1769179138305,111.4122,125.83,125.73,18.95120372]
[1769179138714,7.1632,125.82,125.73,18.95120372]
[1769179139099,222.8179,125.84,125.73,26.11860372]
[1769179139311,222.8179,125.84,125.74,18.95120372]
[1769179139606,116.6951919,125.85,125.75,18.92356946]
[1769179140009,111.4227,125.82,125.75,18.92356946]
[1769179140416,111.4151,125.83,125.75,18.92356946]
[1769179141010,7.1645,125.79,125.69,5.2984919]
[1769179141219,111.4385,125.8,125.69,5.2984919]
[1769179141611,111.4496,125.79,125.68,7.1703]
[1769179141812,111.4496,125.79,125.67,5.2984919]
[1769179141813,111.4577,125.78,125.67,5.2984919]
[1769179142111,111.4496,125.79,125.67,5.2984919]
[1769179142315,5.2984919,125.79,125.64,116.8733919]
[1769179142512,0.05453428,125.74,125.64,116.8733919]
[1769179142723,0.05453428,125.74,125.65,111.5639]
[1769179143119,5.2984919,125.79,125.66,12.70916946]
[1769179143318,7.1656,125.77,125.67,7.171]
[1769179143519,7.1656,125.77,125.67,19.88016946]
[1769179143910,0.05095642,125.73,125.68,12.70916946]
[1769179144421,12.4632919,125.79,125.68,12.70916946]
[1769179144620,12.4632919,125.79,125.69,12.70916946]
[1769179144822,7.1634,125.81,125.69,12.70916946]
[1769179145918,7.1634,125.81,125.72,12.70916946]
[1769179146110,7.1625,125.83,125.72,12.70916946]
[1769179146317,5.2984919,125.85,125.74,12.70916946]
[1769179146515,5.2984919,125.85,125.75,0.05855654]
[1769179146916,5.2984919,125.85,125.74,12.70916946]
[1769179147117,5.2984919,125.85,125.74,19.87626946]
[1769179147318,5.2984919,125.85,125.79,0.06064286]
[1769179148029,12.4598919,125.85,125.79,0.06064286]
[1769179148321,5.2984919,125.81,125.7,7.1692]
[1769179148621,5.2984919,125.78,125.69,12.73949089]
[1769179149027,111.4647,125.77,125.66,12.73949089]
[1769179149222,111.4736,125.76,125.66,12.73949089]
[1769179149414,5.2984919,125.75,125.66,12.73949089]
[1769179149619,7.168,125.73,125.66,12.73949089]
[1769179149826,7.22048339,125.73,125.66,12.73949089]
[1769179150028,0.05248339,125.73,125.66,12.73949089]
[1769179152041,0.05248339,125.73,125.63,134.01329719]
[1769179152338,0.05248339,125.73,125.64,12.73949089]
[1769179152536,12.47808101,125.74,125.64,19.91219089]
[1769179152741,7.1675,125.74,125.64,12.73949089]
[1769179152936,0.05816063,125.7,125.64,12.73949089]
[1769179153236,116.79268101,125.76,125.65,19.91159089]
[1769179153237,12.47678101,125.76,125.65,19.91159089]
[1769179153632,7.1685,125.72,125.65,12.73949089]
[1769179153832,111.4837,125.75,125.65,12.73949089]
[1769179154233,12.47868101,125.73,125.64,7.1727]
[1769179154431,5.31058101,125.76,125.65,12.73949089]
[1769179154843,111.4823,125.75,125.65,12.73949089]
[1769179155335,111.4823,125.75,125.69,0.05578292]
[1769179155538,111.4919,125.74,125.69,0.05578292]
[1769179155740,111.4919,125.74,125.63,22.43159719]
[1769179155940,0.05455205,125.73,125.63,22.43159719]
[1769179156238,111.4919,125.74,125.63,22.43159719]
[1769179156440,7.19611161,125.73,125.63,22.43159719]
[1769179156639,12.50669262,125.73,125.64,12.73949089]
[1769179156837,111.4775,125.76,125.65,12.73949089]
[1769179156838,5.31058101,125.76,125.65,12.73949089]
[1769179157337,7.1674,125.74,125.65,12.73949089]
[1769179157936,111.4927,125.74,125.65,12.73949089]
[1769179158444,111.4828,125.75,125.63,9.6921063]
[1769179158445,7.1685,125.72,125.63,9.6921063]
[1769179158646,111.4599,125.78,125.64,12.71321424]
[1769179158838,12.42695244,125.77,125.68,0.05612562]
[1769179159139,5.31058101,125.77,125.68,12.76933986]
[1769179159337,116.75708101,125.8,125.68,12.71321424]
[1769179159537,7.11684867,125.79,125.68,12.71321424]
[1769179159741,7.1658,125.77,125.68,12.71321424]
[1769179159942,111.4499,125.79,125.68,12.71321424]
[1769179160137,118.57218163,125.78,125.68,12.71321424]
[1769179160340,7.1668,125.75,125.68,12.71321424]
[1769179160736,111.4774,125.76,125.64,12.71321424]
[1769179161140,7.1679,125.73,125.65,19.88521424]
[1769179161645,7.1672,125.75,125.66,19.88471424]
[1769179161842,5.31058101,125.77,125.67,12.71321424]
[1769179162144,111.4509,125.79,125.67,12.71321424]
[1769179162333,111.4509,125.79,125.66,111.5592]
[1769179162334,111.4695,125.77,125.68,12.71321424]
[1769179162535,111.4583,125.78,125.68,12.71321424]
[1769179162741,111.4509,125.79,125.69,7.17]
[1769179162938,111.4509,125.79,125.69,19.88321424]
[1769179163338,7.1651,125.78,125.69,19.88321424]
[1769179163540,111.4498,125.79,125.69,19.88321424]
[1769179163740,111.4559,125.78,125.69,12.71321424]
[1769179163942,7.1655,125.78,125.69,12.71321424]
[1769179164140,116.75708101,125.8,125.69,12.71321424]
[1769179164345,5.31058101,125.82,125.71,12.71321424]
[1769179164646,111.4104,125.84,125.71,12.71321424]
[1769179164647,116.72098101,125.84,125.74,7.1667]
[1769179164847,7.11392954,125.83,125.74,7.1667]
[1769179165046,116.72098101,125.84,125.74,7.1667]
[1769179165244,118.53064369,125.83,125.72,7.1682]
[1769179165438,5.31058101,125.81,125.71,124.22831424]
[1769179165638,0.05713975,125.8,125.71,12.71321424]
[1769179165834,7.22103975,125.8,125.72,7.1679]
[1769179166039,5.31058101,125.81,125.72,12.74352405]
[1769179166943,0.0508854,125.78,125.72,12.74352405]
[1769179167640,5.31058101,125.84,125.74,12.795701]
[1769179167840,7.1178063,125.83,125.74,0.05217695]
[1769179168040,7.1178063,125.83,125.72,12.71808135]
[1769179168245,111.4127,125.83,125.72,12.71808135]
[1769179168749,111.4127,125.83,125.74,7.1671]
[1769179168750,7.1631,125.82,125.74,7.1671]
[1769179168950,7.1631,125.82,125.73,12.71808135]
[1769179169340,111.4152,125.83,125.73,19.88548135]
[1769179169737,7.1646,125.79,125.71,7.1685]
[1769179169938,116.74248101,125.81,125.7,12.71808135]
[1769179170346,116.74268101,125.81,125.7,19.88708135]
[1769179170649,116.74268101,125.81,125.7,12.71808135]
[1769179171151,7.1643,125.8,125.71,12.71808135]
[1769179171653,5.31058101,125.84,125.73,12.71808135]
[1769179172548,7.1621,125.83,125.76,7.1659]
[1769179173254,116.71568101,125.84,125.74,7.1668]
[1769179173446,7.05558588,125.83,125.74,7.1668]
[1769179174051,5.31058101,125.84,125.74,12.71808135]
[1769179174549,116.69468101,125.87,125.75,12.71808135]
[1769179174751,5.31058101,125.89,125.78,12.71808135]
[1769179174947,7.05905767,125.88,125.79,12.71808135]
[1769179175155,111.3761,125.87,125.76,12.71808135]
[1769179175350,7.1616,125.84,125.77,7.1651]
[1769179175954,5.31058101,125.86,125.77,7.1651]
[1769179176150,5.31058101,125.86,125.76,12.71808135]
[1769179176151,7.06603202,125.85,125.76,12.71808135]
[1769179176751,12.47148101,125.86,125.76,12.71808135]
[1769179176950,7.06643481,125.85,125.76,12.71808135]
[1769179177144,7.1616,125.84,125.76,12.71808135]
[1769179177356,111.3937,125.85,125.76,12.71808135]
[1769179177659,5.31058101,125.83,125.71,12.71808135]
[1769179178356,5.31058101,125.83,125.74,19.88508135]
[1769179178656,7.07465942,125.82,125.74,12.71808135]
[1769179178857,116.69918101,125.86,125.74,12.71808135]
[1769179179053,7.07548697,125.85,125.74,12.71808135]
[1769179179753,7.1618,125.84,125.77,19.88358135]
[1769179180355,7.1622,125.83,125.77,12.71808135]
[1769179180553,111.396,125.85,125.75,7.1661]
[1769179180758,7.04814658,125.84,125.75,7.1661]
[1769179181254,7.04814658,125.84,125.74,12.71808135]
[1769179181858,7.1633,125.81,125.74,19.88528135]
[1769179182350,12.47328101,125.83,125.74,19.88528135]
[1769179182546,5.31058101,125.83,125.75,12.71808135]
[1769179182750,5.31058101,125.83,125.71,12.71808135]
[1769179182950,7.1632,125.82,125.73,19.88538135]
[1769179183147,5.31058101,125.83,125.73,19.88538135]
[1769179183351,5.31058101,125.83,125.76,0.05347691]
[1769179183551,7.1632,125.82,125.76,0.05347691]
[1769179183751,5.31058101,125.83,125.76,0.05347691]
[1769179184154,7.1628,125.82,125.76,0.05347691]
[1769179184356,5.31058101,125.83,125.76,0.05347691]
[1769179185052,6.79599421,125.82,125.76,0.05347691]
[1769179185458,118.21949421,125.82,125.76,0.05347691]
[1769179185658,116.81036509,125.8,125.7,12.71808135]
[1769179186263,7.1658,125.77,125.7,12.71808135]
[1769179186764,5.31058101,125.77,125.67,12.71808135]
[1769179186956,0.06067737,125.75,125.67,12.71808135]
[1769179187266,123.54578751,125.74,125.64,12.71808135]
[1769179187469,7.1691,125.71,125.64,12.71808135]
[1769179187762,116.83188101,125.71,125.63,9.6921063]
[1769179187966,7.12733361,125.7,125.63,9.6921063]
[1769179188167,111.5449,125.68,125.58,12.71808135]
[1769179188362,111.5361,125.69,125.58,12.71808135]
[1769179188662,7.1714,125.67,125.58,12.71808135]
[1769179188866,116.85728101,125.68,125.58,12.71808135]
[1769179189059,0.05817805,125.65,125.58,12.71808135]
[1769179189570,7.04610423,125.69,125.62,0.05523534]
[1769179189868,7.171,125.68,125.62,0.05523534]
[1769179190260,111.5457,125.68,125.57,7.1766]
[1769179190464,7.04087605,125.67,125.57,12.74569902]
[1769179190661,111.5386,125.69,125.57,12.74569902]
[1769179190976,7.04095239,125.68,125.57,12.74569902]
[1769179191472,14.21195239,125.68,125.58,7.1761]
[1769179191772,0.05317935,125.64,125.59,12.74569902]
[1769179191979,5.31058101,125.7,125.59,12.74569902]
[1769179192167,7.03664323,125.69,125.62,0.05101718]
[1769179192469,12.48038101,125.7,125.62,0.05101718]
[1769179192669,12.48038101,125.7,125.61,7.1744]
[1769179193161,7.1703,125.69,125.6,12.74569902]
[1769179193870,7.1703,125.69,125.63,0.05253558]
[1769179195173,7.1693,125.71,125.63,0.05253558]
[1769179195677,111.5454,125.68,125.58,7.176]
[1769179195873,111.5357,125.69,125.58,7.176]
[1769179196074,111.5357,125.69,125.58,19.92169902]
[1769179196274,7.1704,125.69,125.59,7.1756]
[1769179196463,7.1704,125.69,125.59,19.92129902]
[1769179196666,7.1704,125.69,125.59,12.74569902]
[1769179196869,7.1704,125.69,125.58,111.6274]
[1769179196870,116.87618101,125.66,125.54,111.6687]
[1769179197170,116.87508101,125.66,125.53,12.74569902]
[1769179197364,124.04718101,125.66,125.55,12.74569902]
[1769179197568,12.48268101,125.66,125.55,12.74569902]
[1769179197772,116.87568101,125.66,125.55,12.74569902]
[1769179197973,111.573,125.65,125.55,12.74569902]
[1769179198170,111.5809,125.64,125.53,12.74569902]
[1769179198493,111.573,125.65,125.53,12.74569902]
[1769179199274,116.87568101,125.66,125.54,12.74569902]
[1769179199275,12.48248101,125.66,125.54,12.74569902]
[1769179199471,5.31058101,125.63,125.51,12.74569902]
[1769179199980,124.07328101,125.63,125.52,12.74569902]
[1769179200277,116.89938101,125.63,125.52,12.74569902]
[1769179200474,5.31058101,125.6,125.48,12.74569902]
[1769179200668,5.31058101,125.6,125.49,12.74569902]
[1769179200865,7.1768,125.58,125.49,12.74569902]
[1769179201070,111.5989,125.62,125.5,12.74569902]
[1769179201270,116.90248101,125.63,125.52,12.8059755]
[1769179201271,5.31058101,125.63,125.52,12.8059755]
[1769179201476,5.31058101,125.68,125.56,12.74569902]
[1769179201671,111.5355,125.69,125.57,12.74569902]
[1769179202071,7.1708,125.68,125.58,12.74569902]
[1769179202273,116.83148101,125.71,125.58,111.6326]
[1769179202475,116.83148101,125.71,125.62,0.05175866]
[1769179202679,111.5274,125.7,125.62,0.05175866]
[1769179203182,7.1692,125.71,125.62,12.74569902]
[1769179203780,116.79208101,125.76,125.63,12.74569902]
[1769179203975,116.79208101,125.76,125.64,12.74569902]
[1769179204376,116.79208101,125.76,125.63,5.31058101]
[1769179204377,7.1676,125.74,125.65,12.74569902]
[1769179204575,111.4609,125.78,125.65,12.74569902]
[1769179204771,116.76498101,125.79,125.65,12.74569902]
[1769179204772,116.76498101,125.79,125.67,12.74569902]
[1769179205074,111.4664,125.77,125.68,12.74569902]
[1769179205270,111.4664,125.77,125.65,12.74569902]
[1769179205477,111.4743,125.76,125.66,12.74569902]
[1769179205671,0.05498425,125.74,125.66,12.74569902]
[1769179205881,111.54678425,125.74,125.66,12.74569902]
[1769179206084,7.1681,125.73,125.66,12.74569902]
[1769179206391,111.5006,125.73,125.63,12.74569902]
[1769179206576,7.1693,125.71,125.63,12.74569902]
[1769179206884,0.05056452,125.69,125.6,12.74569902]
[1769179207078,111.59416452,125.69,125.6,12.74569902]
[1769179207385,111.5455,125.68,125.57,12.74569902]
[1769179207882,0.06040467,125.66,125.57,12.74569902]
[1769179208385,111.5473,125.68,125.57,12.74569902]
[1769179208786,0.05214056,125.63,125.57,12.74569902]
[1769179209889,111.5382,125.69,125.58,12.74569902]
[1769179210089,111.5538,125.67,125.58,12.74569902]
[1769179210291,111.5732,125.65,125.55,12.71962874]
[1769179210493,111.5902,125.63,125.52,12.71962874]
[1769179210684,116.86438101,125.67,125.54,12.71962874]
[1769179210879,7.1731,125.64,125.54,12.71962874]
[1769179211387,7.1731,125.64,125.53,111.6733]
[1769179211388,7.1732,125.64,125.57,12.71962874]
[1769179211583,111.5624,125.66,125.57,12.71962874]
[1769179211887,7.1727,125.65,125.57,12.71962874]
[1769179212580,7.1716,125.67,125.57,12.71962874]
[1769179212787,111.5467,125.68,125.57,12.71962874]
[1769179213082,111.5566,125.67,125.57,12.71962874]
[1769179213288,111.5566,125.67,125.54,12.71962874]
[1769179213289,111.5768,125.65,125.54,12.71962874]
[1769179213499,111.5918,125.63,125.54,12.71962874]
[1769179213787,111.5801,125.64,125.54,12.71962874]
[1769179214284,7.1749,125.61,125.54,12.71962874]
[1769179214482,116.88194389,125.66,125.54,12.71962874]
[1769179214691,116.86844389,125.68,125.55,12.71962874]
[1769179215085,7.172,125.66,125.57,12.71962874]
[1769179215282,111.532,125.7,125.58,12.71962874]
[1769179215490,116.84524389,125.71,125.58,12.71962874]
[1769179215794,7.1694,125.71,125.63,12.77659562]
[1769179215982,111.4898,125.75,125.63,12.77659562]
[1769179216190,111.4898,125.75,125.64,12.71962874]
[1769179216387,111.4924,125.74,125.64,12.71962874]
[1769179216690,7.1676,125.74,125.64,12.71962874]
[1769179216894,111.4855,125.75,125.68,0.05049181]
[1769179217080,111.501,125.73,125.68,0.05049181]
[1769179217392,111.4695,125.77,125.66,12.71962874]
[1769179217791,111.4842,125.75,125.66,12.71962874]
[1769179217993,111.5114,125.72,125.62,12.71962874]
[1769179218188,7.1703,125.69,125.62,12.71962874]
[1769179218389,111.5371,125.69,125.62,12.71962874]
[1769179218586,111.5371,125.69,125.55,5.31914389]
[1769179218587,111.576,125.65,125.55,5.31914389]
[1769179218781,7.1737,125.63,125.53,7.1791]
[1769179219587,7.1743,125.62,125.53,7.1791]
[1769179219787,111.576,125.65,125.53,7.1791]
[1769179220303,111.5535,125.67,125.56,0.05708413]
[1769179220600,111.5535,125.67,125.57,6.49787874]
[1769179220894,7.1725,125.65,125.57,6.49787874]
[1769179221089,111.5658,125.66,125.61,0.05075039]
[1769179221285,111.5535,125.67,125.61,0.05075039]
[1769179221898,116.85444389,125.7,125.61,0.05075039]
[1769179222098,111.5356,125.69,125.61,0.05075039]
[1769179222597,111.5356,125.69,125.59,6.49787874]
[1769179222799,7.172,125.66,125.59,6.49787874]
[1769179223394,0.05391587,125.64,125.59,6.49787874]
[1769179223898,111.5356,125.69,125.59,6.49787874]
[1769179224296,116.85444389,125.7,125.59,6.49787874]
[1769179224600,111.5168,125.72,125.59,6.49787874]
[1769179224785,5.31914389,125.73,125.6,6.49787874]
[1769179224986,7.1687,125.72,125.61,6.49787874]
[1769179225190,111.4901,125.75,125.61,6.49787874]
[1769179225191,111.4924,125.74,125.63,6.49787874]
[1769179225402,111.4898,125.75,125.63,6.49787874]
[1769179225998,7.1669,125.75,125.65,6.49787874]
[1769179226201,116.79994389,125.76,125.65,6.49787874]
[1769179226401,111.4624,125.78,125.66,6.49787874]
[1769179226402,7.1674,125.74,125.66,6.49787874]
[1769179226804,111.4779,125.76,125.66,6.49787874]
[1769179227101,7.168,125.73,125.66,6.49787874]
[1769179227302,111.4779,125.76,125.66,6.49787874]
[1769179227500,111.4779,125.76,125.7,0.05305989]
[1769179227803,7.1665,125.76,125.7,0.05305989]
[1769179228104,116.76874389,125.79,125.7,0.05305989]
[1769179228405,111.4738,125.76,125.7,0.05305989]
[1769179228602,111.4738,125.76,125.66,6.49787874]
[1769179228796,111.4585,125.78,125.66,6.49787874]
[1769179229001,111.4496,125.79,125.67,6.49787874]
[1769179229503,7.1657,125.77,125.68,13.66827874]
[1769179230704,116.75324389,125.81,125.69,6.49787874]
[1769179230907,6.76789356,125.8,125.69,6.49787874]
[1769179232002,7.1652,125.78,125.69,13.66787874]
[1769179232206,116.77594389,125.78,125.65,118.06567874]
[1769179232509,116.77594389,125.78,125.72,0.05416305]
[1769179232800,5.31914389,125.78,125.72,0.05416305]
[1769179233210,414.69923662,125.82,125.72,0.05416305]
[1769179233403,12.08413074,125.81,125.72,0.05416305]
[1769179233712,5.31914389,125.81,125.72,7.1683]
[1769179234004,310.43473662,125.82,125.71,118.01087874]
[1769179234410,310.43473662,125.82,125.72,6.49787874]
[1769179234602,303.27153662,125.82,125.72,6.49787874]
[1769179235199,310.43463662,125.82,125.72,111.5055]
[1769179235406,310.43463662,125.82,125.73,6.49787874]
[1769179235715,303.27153662,125.82,125.73,6.49787874]
[1769179235906,303.27153662,125.82,125.75,7.1665]
[1769179236102,303.27153662,125.82,125.76,0.05661618]
[1769179236614,7.1645,125.79,125.71,7.1685]
[1769179236805,5.37363014,125.8,125.7,6.49787874]
[1769179237206,7.1645,125.79,125.7,6.49787874]
[1769179237715,5.31914389,125.8,125.7,6.49787874]
[1769179238013,0.05575184,125.76,125.7,6.49787874]
[1769179238215,303.27153662,125.82,125.7,6.49787874]
[1769179238601,5.31914389,125.86,125.72,6.49831091]
[1769179238917,412.2384,125.92,125.78,6.49831091]
[1769179239107,116.64984389,125.93,125.78,6.49831091]
[1769179239310,5.31914389,125.87,125.78,6.49831091]
[1769179239501,5.31914389,125.87,125.72,6.49831091]
[1769179239502,111.3878,125.86,125.72,6.49831091]
[1769179239712,5.31914389,125.84,125.72,6.49831091]
[1769179239922,116.72514389,125.84,125.72,6.49831091]
[1769179240601,0.05597934,125.79,125.72,6.49831091]
[1769179242503,0.05597934,125.79,125.73,6.49831091]
[1769179242707,12.48094389,125.84,125.73,6.49831091]
[1769179242912,5.31914389,125.87,125.76,6.47032124]
[1769179243520,116.69794389,125.87,125.76,6.47032124]
[1769179243814,5.31914389,125.84,125.76,6.47032124]
[1769179244011,5.31914389,125.84,125.8,0.05250426]
[1769179244216,12.48074389,125.84,125.76,6.47032124]
[1769179244411,0.06039879,125.81,125.76,6.47032124]
[1769179245916,111.3788,125.87,125.77,0.05265572]
[1769179245917,7.1611,125.85,125.77,0.05265572]
[1769179246304,5.31914389,125.87,125.77,6.44012185]
[1769179247011,5.31914389,125.84,125.72,6.44012185]
[1769179247218,12.48114389,125.84,125.72,6.44012185]
[1769179247417,5.31914389,125.84,125.76,7.1657]
[1769179247621,5.31914389,125.87,125.77,6.47044013]
[1769179247811,116.65524389,125.92,125.79,6.44177905]
[1769179248011,5.31914389,125.89,125.79,6.44177905]
[1769179248910,1.38303791,125.93,125.8,6.44177905]
[1769179249123,5.31914389,125.92,125.82,6.44177905]
[1769179249922,5.31914389,125.95,125.85,6.44177905]
[1769179250118,5.31914389,125.97,125.87,6.44177905]
[1769179250512,5.31914389,125.97,125.89,0.05555943]
[1769179251112,5.31914389,125.97,125.88,6.44177905]
[1769179251823,5.37766479,125.94,125.85,6.46781918]
[1769179252223,12.47524389,125.94,125.85,13.62841918]
[1769179252618,5.31914389,125.94,125.82,6.46781918]
[1769179252819,116.63554389,125.94,125.82,6.46781918]
[1769179253019,0.05231916,125.91,125.83,7.1618]
[1769179253612,7.1567,125.93,125.84,7.1613]
[1769179253813,7.1567,125.93,125.82,117.88541918]
[1769179254015,0.05762094,125.88,125.82,117.88541918]
[1769179254219,0.05762094,125.88,125.83,7.1619]
[1769179254419,0.05762094,125.88,125.82,6.46781918]
[1769179255424,0.05762094,125.88,125.83,7.1619]
[1769179255730,116.63424389,125.94,125.83,6.46781918]
[1769179256029,7.1567,125.93,125.83,13.62971918]
[1769179256228,7.1567,125.93,125.83,6.46781918]
[1769179257130,7.1567,125.93,125.87,0.05271256]
[1769179257319,5.31914389,125.94,125.87,0.05271256]
[1769179257524,317.98875978,125.99,125.87,117.89413174]
[1769179257724,7.1538,125.98,125.88,6.46781918]
[1769179257921,5.31914389,126.0,125.88,6.46781918]
[1769179258124,116.55764389,126.03,125.88,6.46781918]
[1769179258335,7.1532,125.99,125.88,6.46781918]
[1769179258633,116.55764389,126.03,125.88,6.46781918]
[1769179258834,116.55764389,126.03,125.94,0.0539908]
[1769179259026,118.3895,126.03,125.94,0.0539908]
[1769179259230,116.55764389,126.03,125.94,0.0539908]
[1769179259434,5.31914389,126.03,125.92,6.46781918]
[1769179259829,5.31914389,126.03,125.97,0.05109329]
[1769179260232,111.2437,126.02,125.91,6.46781918]
[1769179260435,0.05615595,126.01,125.91,6.46781918]
[1769179260926,111.2572,126.01,125.91,6.46781918]
[1769179261126,116.56814389,126.02,125.91,6.46781918]
[1769179261329,7.1527,126.0,125.91,6.46781918]
[1769179261530,116.54204389,126.05,125.91,6.46781918]
[1769179261729,111.226,126.04,125.91,6.46781918]
[1769179261938,5.31914389,126.05,125.93,6.44150793]
[1769179262134,5.31914389,126.05,125.97,6.49930113]
[1769179262330,111.2265,126.04,125.97,0.0577932]
[1769179262528,111.2265,126.04,125.93,6.44150793]
[1769179262726,116.56594389,126.02,125.9,6.44150793]
[1769179263042,111.2348,126.03,125.97,0.05225861]
[1769179263239,116.57634389,126.01,125.92,6.44150793]
[1769179263434,0.05326221,125.97,125.89,6.44150793]
[1769179263941,111.2705,125.99,125.85,11.76065182]
[1769179264127,116.60234389,125.98,125.85,6.44150793]
[1769179264525,0.05341842,125.93,125.85,6.44150793]
[1769179264730,5.31914389,126.0,125.87,6.44150793]
[1769179264940,116.58384389,126.0,125.9,0.05979617]
[1769179265337,116.58384389,126.0,125.89,6.41479872]
[1769179265543,5.31914389,126.0,125.89,6.41479872]
[1769179265842,116.58764389,126.0,125.89,6.41479872]
[1769179266033,111.247,126.02,125.93,0.05952207]
[1769179266239,111.2555,126.01,125.93,0.05952207]
[1769179266439,5.31914389,126.02,125.91,6.41479872]
[1769179266639,116.56644389,126.02,125.91,6.41479872]
[1769179266936,5.31914389,126.02,125.96,0.05359831]
[1769179267138,7.152,126.01,125.96,0.05359831]